[Event "Titled Tuesday Blitz April 05 Late 2022"]
[White "Dreev, Aleksey"]
[Black "Tristan, Leonardo"]
[WhiteFideId "4100107"]
[BlackFideId "113816"]
[WhiteElo "2625"]
[BlackElo "2404"]
[Result "0-1"]
[Round "06"]
[TimeControl "180+1"]
[Date "2022.04.05"]
[WhiteClock "0:00:08"]
[BlackClock "0:00:13"]

1. d4 {[%clk 0:03:00]}  d5 {[%clk 0:03:00]} 2. c4 {[%clk 0:03:00]}  e6 {[%clk 0:03:00]} 3. Nc3 {[%clk 0:03:00]}  a6 {[%clk 0:03:01]} 4. cxd5 {[%clk 0:03:00]}  exd5 {[%clk 0:03:02]} 5. Qb3 {[%clk 0:03:00]}  c5 {[%clk 0:03:01]} 6. Qxd5 {[%clk 0:03:00]}  cxd4 {[%clk 0:03:00]} 7. Qxd8+ {[%clk 0:02:59]}  Kxd8 {[%clk 0:03:00]} 8. Nd5 {[%clk 0:02:52]}  Be6 {[%clk 0:02:58]} 9. Nf4 {[%clk 0:02:51]}  Nc6 {[%clk 0:02:58]} 10. Nf3 {[%clk 0:02:44]}  Bb4+ {[%clk 0:02:58]} 11. Bd2 {[%clk 0:02:44]}  Bxd2+ {[%clk 0:02:58]} 12. Kxd2 {[%clk 0:02:44]}  Nf6 {[%clk 0:02:55]} 13. Nxe6+ {[%clk 0:02:32]}  fxe6 {[%clk 0:02:55]} 14. e3 {[%clk 0:02:33]}  Kc7 {[%clk 0:02:19]} 15. exd4 {[%clk 0:02:24]}  Rad8 {[%clk 0:02:19]} 16. Rc1 {[%clk 0:02:23]}  Kb6 {[%clk 0:02:18]} 17. Bd3 {[%clk 0:02:04]}  Nxd4 {[%clk 0:02:12]} 18. Ne5 {[%clk 0:02:01]}  Rhf8 {[%clk 0:02:03]} 19. Rc4 {[%clk 0:01:33]}  Rd5 {[%clk 0:01:58]} 20. Re1 {[%clk 0:01:29]}  Rfd8 {[%clk 0:01:55]} 21. Rc3 {[%clk 0:01:17]}  Ka7 {[%clk 0:01:17]} 22. Kc1 {[%clk 0:01:14]}  Nd7 {[%clk 0:01:17]} 23. Nxd7 {[%clk 0:01:04]}  R8xd7 {[%clk 0:01:18]} 24. Bxh7 {[%clk 0:00:56]}  Rh5 {[%clk 0:01:14]} 25. Rh3 {[%clk 0:00:53]}  Rc7+ {[%clk 0:01:06]} 26. Kb1 {[%clk 0:00:52]}  Rxh3 {[%clk 0:01:00]} 27. gxh3 {[%clk 0:00:52]}  Nf3 {[%clk 0:01:01]} 28. Rd1 {[%clk 0:00:43]}  Ng5 {[%clk 0:00:55]} 29. Bc2 {[%clk 0:00:28]}  Nxh3 {[%clk 0:00:54]} 30. Re1 {[%clk 0:00:19]}  Rf7 {[%clk 0:00:51]} 31. Rxe6 {[%clk 0:00:16]}  Rxf2 {[%clk 0:00:52]} 32. a3 {[%clk 0:00:11]}  Rxh2 {[%clk 0:00:46]} 33. Re7 {[%clk 0:00:12]}  Nf2 {[%clk 0:00:27]} 34. Rxg7 {[%clk 0:00:11]}  Rh1+ {[%clk 0:00:27]} 35. Ka2 {[%clk 0:00:11]}  Rc1 {[%clk 0:00:27]} 36. Bb3 {[%clk 0:00:10]}  Rc5 {[%clk 0:00:24]} 37. Bd1 {[%clk 0:00:10]}  Nxd1 {[%clk 0:00:24]} 38. Re7 {[%clk 0:00:09]}  Rc2 {[%clk 0:00:21]} 39. Ka1 {[%clk 0:00:09]}  Nxb2 {[%clk 0:00:19]} 40. Kb1 {[%clk 0:00:08]}  Rh2 {[%clk 0:00:19]} 41. Re4 {[%clk 0:00:08]}  b5 {[%clk 0:00:18]} 42. Re7+ {[%clk 0:00:07]}  Kb6 {[%clk 0:00:18]} 43. Re6+ {[%clk 0:00:06]}  Ka5 {[%clk 0:00:19]} 44. Re4 {[%clk 0:00:07]}  Nc4 {[%clk 0:00:19]} 45. Ka1 {[%clk 0:00:08]}  Ka4 {[%clk 0:00:15]} 46. Rd4 {[%clk 0:00:08]}  Kxa3 {[%clk 0:00:15]} 47. Rd3+ {[%clk 0:00:08]}  Ka4 {[%clk 0:00:14]} 48. Rc3 {[%clk 0:00:08]}  a5 {[%clk 0:00:13]} 49. Kb1 {[%clk 0:00:08]}  Kb4 {[%clk 0:00:13]} 50. Rd3 {[%clk 0:00:08]}  a4 {[%clk 0:00:13]} 0-1


[Site "https://www.chess.com"]

[Event "Titled Tuesday Blitz April 05 Late 2022"]
[White "Foisor, Sabina-Francesca"]
[Black "Hernandez Bermudez, Ulises Eduardo"]
[WhiteFideId "1212915"]
[BlackFideId "3902510"]
[WhiteElo "2243"]
[BlackElo "2056"]
[Result "1-0"]
[Round "06"]
[TimeControl "180+1"]
[Date "2022.04.06"]
[WhiteClock "0:00:10"]
[BlackClock "0:00:13"]

1. d4 {[%clk 0:03:00]}  Nf6 {[%clk 0:02:59]} 2. c4 {[%clk 0:03:00]}  g6 {[%clk 0:02:58]} 3. Nf3 {[%clk 0:02:57]}  Bg7 {[%clk 0:02:58]} 4. g3 {[%clk 0:02:56]}  d6 {[%clk 0:02:58]} 5. Bg2 {[%clk 0:02:56]}  O-O {[%clk 0:02:57]} 6. O-O {[%clk 0:02:57]}  Nc6 {[%clk 0:02:57]} 7. Nc3 {[%clk 0:02:57]}  e5 {[%clk 0:02:57]} 8. d5 {[%clk 0:02:56]}  Ne7 {[%clk 0:02:57]} 9. Qc2 {[%clk 0:02:47]}  Nd7 {[%clk 0:02:55]} 10. Rb1 {[%clk 0:02:34]}  h6 {[%clk 0:02:50]} 11. b4 {[%clk 0:02:29]}  f5 {[%clk 0:02:46]} 12. Rd1 {[%clk 0:02:09]}  Nf6 {[%clk 0:02:32]} 13. c5 {[%clk 0:02:04]}  a5 {[%clk 0:02:29]} 14. a3 {[%clk 0:02:02]}  e4 {[%clk 0:02:19]} 15. Ne1 {[%clk 0:01:35]}  Ng4 {[%clk 0:02:15]} 16. h3 {[%clk 0:01:28]}  Ne5 {[%clk 0:02:14]} 17. cxd6 {[%clk 0:01:16]}  cxd6 {[%clk 0:02:12]} 18. Nb5 {[%clk 0:01:15]}  axb4 {[%clk 0:01:49]} 19. axb4 {[%clk 0:01:11]}  Bd7 {[%clk 0:01:48]} 20. Nc3 {[%clk 0:00:55]}  Rc8 {[%clk 0:01:46]} 21. Bb2 {[%clk 0:00:54]}  Nc4 {[%clk 0:01:44]} 22. Rdc1 {[%clk 0:00:48]}  Nxb2 {[%clk 0:01:40]} 23. Qxb2 {[%clk 0:00:49]}  Qb6 {[%clk 0:01:24]} 24. Qb3 {[%clk 0:00:35]}  f4 {[%clk 0:01:12]} 25. g4 {[%clk 0:00:20]}  f3 {[%clk 0:01:00]} 26. exf3 {[%clk 0:00:21]}  exf3 {[%clk 0:01:00]} 27. Nxf3 {[%clk 0:00:19]}  Rf4 {[%clk 0:00:43]} 28. Ne2 {[%clk 0:00:18]}  Rxc1+ {[%clk 0:00:38]} 29. Rxc1 {[%clk 0:00:19]}  Rxb4 {[%clk 0:00:37]} 30. Qc2 {[%clk 0:00:13]}  Rb2 {[%clk 0:00:32]} 31. Qd1 {[%clk 0:00:13]}  Kh7 {[%clk 0:00:26]} 32. Bf1 {[%clk 0:00:13]}  Ng8 {[%clk 0:00:20]} 33. h4 {[%clk 0:00:12]}  Nf6 {[%clk 0:00:20]} 34. g5 {[%clk 0:00:12]}  Ne4 {[%clk 0:00:19]} 35. Nfd4 {[%clk 0:00:10]}  hxg5 {[%clk 0:00:14]} 36. hxg5 {[%clk 0:00:10]}  Nxg5 {[%clk 0:00:15]} 37. Qd3 {[%clk 0:00:09]}  Bxd4 {[%clk 0:00:13]} 38. Nxd4 {[%clk 0:00:09]}  Qxd4 {[%clk 0:00:13]} 39. Qxd4 {[%clk 0:00:09]}  Nf3+ {[%clk 0:00:14]} 40. Kg2 {[%clk 0:00:09]}  Nxd4 {[%clk 0:00:15]} 41. Rc7 {[%clk 0:00:09]}  Kh6 {[%clk 0:00:15]} 42. Rxd7 {[%clk 0:00:09]}  Nf5 {[%clk 0:00:15]} 43. Bd3 {[%clk 0:00:09]}  Ne3+ {[%clk 0:00:14]} 44. Kf3 {[%clk 0:00:09]}  Nxd5 {[%clk 0:00:15]} 45. Rxd6 {[%clk 0:00:10]}  Ne7 {[%clk 0:00:15]} 46. Re6 {[%clk 0:00:10]}  Ng8 {[%clk 0:00:14]} 47. Rxg6+ {[%clk 0:00:10]}  Kh7 {[%clk 0:00:13]} 48. Rb6+ {[%clk 0:00:10]} 1-0


[Site "https://www.chess.com"]

[Event "Titled Tuesday Blitz April 05 Late 2022"]
[White "Gomez Dieguez, David"]
[Black "Clawitter, Craig"]
[WhiteFideId "22223630"]
[BlackFideId "2023105"]
[WhiteElo "2115"]
[BlackElo "2230"]
[Result "1/2-1/2"]
[Round "06"]
[TimeControl "180+1"]
[Date "2022.04.06"]
[WhiteClock "0:00:10"]
[BlackClock "0:00:06"]

1. c4 {[%clk 0:03:00]}  e6 {[%clk 0:02:58]} 2. Nf3 {[%clk 0:03:00]}  Nf6 {[%clk 0:02:57]} 3. Nc3 {[%clk 0:02:59]}  d5 {[%clk 0:02:57]} 4. e3 {[%clk 0:02:59]}  c6 {[%clk 0:02:55]} 5. b3 {[%clk 0:02:59]}  Nbd7 {[%clk 0:02:54]} 6. Bb2 {[%clk 0:02:58]}  Bd6 {[%clk 0:02:52]} 7. d4 {[%clk 0:02:53]}  O-O {[%clk 0:02:52]} 8. Be2 {[%clk 0:02:53]}  e5 {[%clk 0:02:39]} 9. cxd5 {[%clk 0:02:52]}  cxd5 {[%clk 0:02:39]} 10. dxe5 {[%clk 0:02:51]}  Nxe5 {[%clk 0:02:39]} 11. O-O {[%clk 0:02:51]}  Be6 {[%clk 0:02:28]} 12. Nb5 {[%clk 0:02:51]}  Nxf3+ {[%clk 0:02:17]} 13. Bxf3 {[%clk 0:02:51]}  Bb8 {[%clk 0:02:15]} 14. Nd4 {[%clk 0:02:50]}  Re8 {[%clk 0:02:04]} 15. Rc1 {[%clk 0:02:48]}  Ne4 {[%clk 0:01:54]} 16. g3 {[%clk 0:02:45]}  Bh3 {[%clk 0:01:47]} 17. Bg2 {[%clk 0:02:45]}  Bxg2 {[%clk 0:01:47]} 18. Kxg2 {[%clk 0:02:46]}  Be5 {[%clk 0:01:41]} 19. Rc2 {[%clk 0:02:38]}  Rc8 {[%clk 0:01:36]} 20. Qc1 {[%clk 0:02:25]}  Qd7 {[%clk 0:01:27]} 21. Rd1 {[%clk 0:02:13]}  Rxc2 {[%clk 0:01:04]} 22. Qxc2 {[%clk 0:02:10]}  Rc8 {[%clk 0:00:55]} 23. Qd3 {[%clk 0:02:03]}  h6 {[%clk 0:00:39]} 24. Rc1 {[%clk 0:01:48]}  Rxc1 {[%clk 0:00:16]} 25. Bxc1 {[%clk 0:01:48]}  Ng5 {[%clk 0:00:11]} 26. f4 {[%clk 0:01:21]}  Qh3+ {[%clk 0:00:10]} 27. Kg1 {[%clk 0:01:22]}  Bxd4 {[%clk 0:00:10]} 28. exd4 {[%clk 0:01:16]}  Ne4 {[%clk 0:00:09]} 29. Qf1 {[%clk 0:00:53]}  Qxf1+ {[%clk 0:00:09]} 30. Kxf1 {[%clk 0:00:54]}  Kf8 {[%clk 0:00:09]} 31. Ba3+ {[%clk 0:00:49]}  Ke8 {[%clk 0:00:09]} 32. Bb4 {[%clk 0:00:47]}  g6 {[%clk 0:00:07]} 33. Ke2 {[%clk 0:00:44]}  Kd7 {[%clk 0:00:07]} 34. g4 {[%clk 0:00:35]}  Nf6 {[%clk 0:00:07]} 35. Kf3 {[%clk 0:00:30]}  h5 {[%clk 0:00:07]} 36. h3 {[%clk 0:00:27]}  hxg4+ {[%clk 0:00:06]} 37. hxg4 {[%clk 0:00:27]}  Ke6 {[%clk 0:00:07]} 38. Bc5 {[%clk 0:00:19]}  b6 {[%clk 0:00:07]} 39. Bf8 {[%clk 0:00:19]}  Nd7 {[%clk 0:00:06]} 40. Bg7 {[%clk 0:00:19]}  Nf6 {[%clk 0:00:06]} 41. Bxf6 {[%clk 0:00:15]}  Kxf6 {[%clk 0:00:07]} 42. a4 {[%clk 0:00:13]}  a5 {[%clk 0:00:06]} 43. Ke3 {[%clk 0:00:12]}  Ke6 {[%clk 0:00:06]} 44. Kd3 {[%clk 0:00:12]}  Kd6 {[%clk 0:00:07]} 45. Kc3 {[%clk 0:00:12]}  f6 {[%clk 0:00:07]} 46. b4 {[%clk 0:00:12]}  Kc6 {[%clk 0:00:06]} 47. b5+ {[%clk 0:00:12]}  Kd6 {[%clk 0:00:06]} 48. Kd3 {[%clk 0:00:11]}  Ke6 {[%clk 0:00:07]} 49. Ke3 {[%clk 0:00:11]}  f5 {[%clk 0:00:06]} 50. g5 {[%clk 0:00:10]}  Kd6 {[%clk 0:00:06]} 51. Kd3 {[%clk 0:00:10]}  Ke6 {[%clk 0:00:06]} 1/2-1/2


[Site "https://www.chess.com"]

[Event "Titled Tuesday Blitz April 05 Late 2022"]
[White "Goryachkina, Aleksandra"]
[Black "Villegas, Pierre"]
[WhiteFideId "4147103"]
[BlackFideId "654183"]
[WhiteElo "2644"]
[BlackElo "2537"]
[Result "1/2-1/2"]
[Round "06"]
[TimeControl "180+1"]
[Date "2022.04.06"]
[WhiteClock "0:00:08"]
[BlackClock "0:00:06"]

1. e4 {[%clk 0:02:59]}  c6 {[%clk 0:02:58]} 2. d4 {[%clk 0:02:59]}  d5 {[%clk 0:02:59]} 3. e5 {[%clk 0:02:59]}  c5 {[%clk 0:02:55]} 4. dxc5 {[%clk 0:02:59]}  e6 {[%clk 0:02:56]} 5. a3 {[%clk 0:02:54]}  Nc6 {[%clk 0:02:54]} 6. Nf3 {[%clk 0:02:54]}  Bxc5 {[%clk 0:02:55]} 7. Bd3 {[%clk 0:02:52]}  Nge7 {[%clk 0:02:53]} 8. O-O {[%clk 0:02:51]}  Ng6 {[%clk 0:02:53]} 9. b4 {[%clk 0:02:47]}  Bb6 {[%clk 0:02:53]} 10. Re1 {[%clk 0:02:44]}  f6 {[%clk 0:02:44]} 11. Bb2 {[%clk 0:02:16]}  O-O {[%clk 0:02:28]} 12. exf6 {[%clk 0:02:06]}  gxf6 {[%clk 0:02:26]} 13. c4 {[%clk 0:02:06]}  Nf4 {[%clk 0:02:14]} 14. cxd5 {[%clk 0:01:44]}  Qxd5 {[%clk 0:02:04]} 15. Be4 {[%clk 0:01:40]}  Qxd1 {[%clk 0:01:58]} 16. Rxd1 {[%clk 0:01:40]}  e5 {[%clk 0:01:51]} 17. Nbd2 {[%clk 0:01:34]}  Be6 {[%clk 0:01:47]} 18. Nf1 {[%clk 0:01:09]}  Rfd8 {[%clk 0:01:29]} 19. Ng3 {[%clk 0:01:08]}  Bb3 {[%clk 0:00:54]} 20. Rd2 {[%clk 0:01:06]}  Rxd2 {[%clk 0:00:50]} 21. Nxd2 {[%clk 0:01:07]}  Bd5 {[%clk 0:00:50]} 22. Bxd5+ {[%clk 0:00:59]}  Nxd5 {[%clk 0:00:51]} 23. Nge4 {[%clk 0:00:59]}  Rd8 {[%clk 0:00:46]} 24. Nc4 {[%clk 0:00:46]}  Bd4 {[%clk 0:00:39]} 25. Bxd4 {[%clk 0:00:38]}  Nxd4 {[%clk 0:00:39]} 26. Rd1 {[%clk 0:00:34]}  Kf8 {[%clk 0:00:32]} 27. Kf1 {[%clk 0:00:29]}  Ke7 {[%clk 0:00:32]} 28. g3 {[%clk 0:00:20]}  b6 {[%clk 0:00:28]} 29. Rd3 {[%clk 0:00:10]}  Rc8 {[%clk 0:00:28]} 30. Ne3 {[%clk 0:00:07]}  Rc1+ {[%clk 0:00:23]} 31. Kg2 {[%clk 0:00:07]}  Nxe3+ {[%clk 0:00:18]} 32. fxe3 {[%clk 0:00:08]}  Rc2+ {[%clk 0:00:18]} 33. Kf1 {[%clk 0:00:07]}  Ne6 {[%clk 0:00:17]} 34. h4 {[%clk 0:00:05]}  f5 {[%clk 0:00:14]} 35. Nd6 {[%clk 0:00:04]}  f4 {[%clk 0:00:09]} 36. exf4 {[%clk 0:00:04]}  exf4 {[%clk 0:00:10]} 37. g4 {[%clk 0:00:05]}  Kf6 {[%clk 0:00:08]} 38. Nf5 {[%clk 0:00:04]}  Ke5 {[%clk 0:00:06]} 39. Rd1 {[%clk 0:00:03]}  Rc4 {[%clk 0:00:03]} 40. Re1+ {[%clk 0:00:03]}  Re4 {[%clk 0:00:03]} 41. Rxe4+ {[%clk 0:00:04]}  Kxe4 {[%clk 0:00:04]} 42. Kf2 {[%clk 0:00:04]}  Nc7 {[%clk 0:00:02]} 43. Nd6+ {[%clk 0:00:04]}  Ke5 {[%clk 0:00:02]} 44. Nc8 {[%clk 0:00:05]}  Nb5 {[%clk 0:00:02]} 45. a4 {[%clk 0:00:05]}  Nc3 {[%clk 0:00:03]} 46. Nxa7 {[%clk 0:00:05]}  Nxa4 {[%clk 0:00:03]} 47. Nc8 {[%clk 0:00:04]}  b5 {[%clk 0:00:03]} 48. Na7 {[%clk 0:00:04]}  Nc3 {[%clk 0:00:03]} 49. Kf3 {[%clk 0:00:05]}  Nd5 {[%clk 0:00:04]} 50. Nxb5 {[%clk 0:00:05]}  Nxb4 {[%clk 0:00:04]} 51. Nc3 {[%clk 0:00:04]}  Nc6 {[%clk 0:00:05]} 52. Nb5 {[%clk 0:00:04]}  Ne7 {[%clk 0:00:04]} 53. Nc3 {[%clk 0:00:04]}  Ng6 {[%clk 0:00:04]} 54. h5 {[%clk 0:00:03]}  Nh4+ {[%clk 0:00:03]} 55. Kf2 {[%clk 0:00:04]}  Kf6 {[%clk 0:00:03]} 56. Ne4+ {[%clk 0:00:04]}  Ke5 {[%clk 0:00:04]} 57. Nc3 {[%clk 0:00:04]}  Kf6 {[%clk 0:00:04]} 58. Ne4+ {[%clk 0:00:04]}  Ke5 {[%clk 0:00:04]} 59. Ng5 {[%clk 0:00:04]}  h6 {[%clk 0:00:03]} 60. Nf3+ {[%clk 0:00:05]}  Nxf3 {[%clk 0:00:03]} 61. Kxf3 {[%clk 0:00:06]}  Kf6 {[%clk 0:00:02]} 62. Kxf4 {[%clk 0:00:06]}  Ke6 {[%clk 0:00:02]} 63. g5 {[%clk 0:00:03]}  hxg5+ {[%clk 0:00:02]} 64. Kxg5 {[%clk 0:00:04]}  Kf7 {[%clk 0:00:03]} 65. Kh6 {[%clk 0:00:05]}  Kg8 {[%clk 0:00:03]} 66. Kg6 {[%clk 0:00:05]}  Kh8 {[%clk 0:00:04]} 67. h6 {[%clk 0:00:06]}  Kg8 {[%clk 0:00:05]} 68. h7+ {[%clk 0:00:07]}  Kh8 {[%clk 0:00:06]} 69. Kh6 {[%clk 0:00:08]} 1/2-1/2


[Site "https://www.chess.com"]

[Event "Titled Tuesday Blitz April 05 Late 2022"]
[White "Hardaway, Brewington"]
[Black "Bilan, Danila"]
[WhiteFideId "30941849"]
[BlackFideId "24161918"]
[WhiteElo "1768"]
[BlackElo "2164"]
[Result "0-1"]
[Round "06"]
[TimeControl "180+1"]
[Date "2022.04.05"]
[WhiteClock "0:00:53"]
[BlackClock "0:00:06"]

1. b3 {[%clk 0:03:00]}  d5 {[%clk 0:02:59]} 2. Bb2 {[%clk 0:03:00]}  Nf6 {[%clk 0:02:58]} 3. e3 {[%clk 0:02:59]}  Bf5 {[%clk 0:02:55]} 4. f4 {[%clk 0:02:57]}  e6 {[%clk 0:02:52]} 5. Nf3 {[%clk 0:02:57]}  h6 {[%clk 0:02:52]} 6. Ne5 {[%clk 0:02:55]}  Nbd7 {[%clk 0:02:47]} 7. Be2 {[%clk 0:02:51]}  Nxe5 {[%clk 0:02:43]} 8. Bxe5 {[%clk 0:02:44]}  Nd7 {[%clk 0:02:32]} 9. Bb2 {[%clk 0:02:34]}  Be7 {[%clk 0:02:20]} 10. d3 {[%clk 0:02:33]}  Bf6 {[%clk 0:02:10]} 11. c3 {[%clk 0:02:28]}  e5 {[%clk 0:02:04]} 12. fxe5 {[%clk 0:02:26]}  Nxe5 {[%clk 0:01:44]} 13. O-O {[%clk 0:02:23]}  Bh7 {[%clk 0:01:34]} 14. d4 {[%clk 0:02:19]}  Nc6 {[%clk 0:01:20]} 15. c4 {[%clk 0:02:19]}  O-O {[%clk 0:01:15]} 16. Nc3 {[%clk 0:02:17]}  Nb4 {[%clk 0:01:01]} 17. a3 {[%clk 0:02:16]}  Nc2 {[%clk 0:01:01]} 18. Nxd5 {[%clk 0:02:14]}  Bg5 {[%clk 0:00:50]} 19. Bd3 {[%clk 0:02:05]}  Nxa1 {[%clk 0:00:42]} 20. Bxh7+ {[%clk 0:02:04]}  Kxh7 {[%clk 0:00:41]} 21. Qd3+ {[%clk 0:02:05]}  Kg8 {[%clk 0:00:41]} 22. Bxa1 {[%clk 0:02:04]}  c6 {[%clk 0:00:35]} 23. Nc3 {[%clk 0:02:02]}  Qe7 {[%clk 0:00:33]} 24. e4 {[%clk 0:02:00]}  Rad8 {[%clk 0:00:33]} 25. Ne2 {[%clk 0:01:56]}  Rfe8 {[%clk 0:00:31]} 26. Ng3 {[%clk 0:01:52]}  Bh4 {[%clk 0:00:22]} 27. d5 {[%clk 0:01:51]}  Bxg3 {[%clk 0:00:12]} 28. Qxg3 {[%clk 0:01:50]}  Qg5 {[%clk 0:00:13]} 29. Qf3 {[%clk 0:01:46]}  Rd7 {[%clk 0:00:10]} 30. Bd4 {[%clk 0:01:45]}  cxd5 {[%clk 0:00:08]} 31. exd5 {[%clk 0:01:43]}  b6 {[%clk 0:00:07]} 32. Qc3 {[%clk 0:01:35]}  Qg6 {[%clk 0:00:07]} 33. Rf3 {[%clk 0:01:30]}  Rde7 {[%clk 0:00:08]} 34. h3 {[%clk 0:01:27]}  Re1+ {[%clk 0:00:08]} 35. Kh2 {[%clk 0:01:28]}  Qd6+ {[%clk 0:00:08]} 36. Rg3 {[%clk 0:01:24]}  h5 {[%clk 0:00:07]} 37. h4 {[%clk 0:01:22]}  R8e4 {[%clk 0:00:06]} 38. Bf6 {[%clk 0:01:17]}  Kh7 {[%clk 0:00:03]} 39. Bg5 {[%clk 0:01:05]}  f6 {[%clk 0:00:01]} 40. Qf3 {[%clk 0:00:59]}  fxg5 {[%clk 0:00:02]} 41. Qxh5+ {[%clk 0:01:00]}  Qh6 {[%clk 0:00:03]} 42. Qxg5 {[%clk 0:00:53]}  Rxh4+ {[%clk 0:00:03]} 43. Qxh4 {[%clk 0:00:51]}  Qxh4+ {[%clk 0:00:03]} 44. Rh3 {[%clk 0:00:52]}  Qxh3+ {[%clk 0:00:03]} 45. Kxh3 {[%clk 0:00:52]}  Re3+ {[%clk 0:00:04]} 46. Kg4 {[%clk 0:00:52]}  Rxb3 {[%clk 0:00:05]} 47. Kf5 {[%clk 0:00:52]}  Rxa3 {[%clk 0:00:05]} 48. Ke6 {[%clk 0:00:52]}  Rc3 {[%clk 0:00:05]} 49. d6 {[%clk 0:00:53]}  Rxc4 {[%clk 0:00:06]} 50. Kd5 {[%clk 0:00:53]}  Rc2 {[%clk 0:00:06]} 51. d7 {[%clk 0:00:53]}  Rxg2 {[%clk 0:00:06]} 0-1


[Site "https://www.chess.com"]

[Event "Titled Tuesday Blitz April 05 Late 2022"]
[White "Hnydiuk, Aleksander"]
[Black "Karttunen, Mika"]
[WhiteFideId "1109057"]
[BlackFideId "502081"]
[WhiteElo "2374"]
[BlackElo "2343"]
[Result "0-1"]
[Round "06"]
[TimeControl "180+1"]
[Date "2022.04.05"]
[WhiteClock "0:00:01"]
[BlackClock "0:00:12"]

1. Nf3 {[%clk 0:03:00]}  Nf6 {[%clk 0:02:55]} 2. c4 {[%clk 0:03:00]}  e6 {[%clk 0:02:52]} 3. g3 {[%clk 0:02:59]}  d5 {[%clk 0:02:52]} 4. d4 {[%clk 0:03:00]}  Be7 {[%clk 0:02:51]} 5. Bg2 {[%clk 0:03:00]}  O-O {[%clk 0:02:51]} 6. O-O {[%clk 0:03:00]}  dxc4 {[%clk 0:02:50]} 7. Qc2 {[%clk 0:03:01]}  a6 {[%clk 0:02:49]} 8. Qxc4 {[%clk 0:03:01]}  b5 {[%clk 0:02:49]} 9. Qc2 {[%clk 0:03:02]}  Bb7 {[%clk 0:02:49]} 10. Bd2 {[%clk 0:03:02]}  Be4 {[%clk 0:02:50]} 11. Qc1 {[%clk 0:03:03]}  Nbd7 {[%clk 0:02:41]} 12. Ba5 {[%clk 0:02:54]}  Bd6 {[%clk 0:02:35]} 13. Nbd2 {[%clk 0:02:53]}  Bd5 {[%clk 0:02:30]} 14. Qc2 {[%clk 0:02:51]}  Bb7 {[%clk 0:02:04]} 15. e4 {[%clk 0:02:44]}  e5 {[%clk 0:02:02]} 16. Rac1 {[%clk 0:02:24]}  Rc8 {[%clk 0:02:01]} 17. dxe5 {[%clk 0:02:16]}  Nxe5 {[%clk 0:02:01]} 18. Nd4 {[%clk 0:01:59]}  g6 {[%clk 0:01:06]} 19. h3 {[%clk 0:01:39]}  Nh5 {[%clk 0:00:56]} 20. Rfd1 {[%clk 0:01:28]}  Qe7 {[%clk 0:00:38]} 21. Ne2 {[%clk 0:01:19]}  c5 {[%clk 0:00:34]} 22. Nc3 {[%clk 0:00:55]}  c4 {[%clk 0:00:32]} 23. Bf1 {[%clk 0:00:46]}  Bc5 {[%clk 0:00:29]} 24. Kg2 {[%clk 0:00:31]}  Qg5 {[%clk 0:00:29]} 25. Nd5 {[%clk 0:00:23]}  Bxf2 {[%clk 0:00:23]} 26. Qc3 {[%clk 0:00:08]}  Bxd5 {[%clk 0:00:19]} 27. exd5 {[%clk 0:00:06]}  Be3 {[%clk 0:00:18]} 28. Ne4 {[%clk 0:00:05]}  Nf4+ {[%clk 0:00:14]} 29. Kh2 {[%clk 0:00:03]}  Nxd5 {[%clk 0:00:13]} 30. Nxg5 {[%clk 0:00:01]}  Nxc3 {[%clk 0:00:12]} 0-1


[Site "https://www.chess.com"]

[Event "Titled Tuesday Blitz April 05 Late 2022"]
[White "Hoffmann, Asa"]
[Black "Tregubov, Pavel V."]
[WhiteFideId "2001470"]
[BlackFideId "4115341"]
[WhiteElo "2378"]
[BlackElo "2602"]
[Result "0-1"]
[Round "06"]
[TimeControl "180+1"]
[Date "2022.04.06"]
[WhiteClock "0:00:36"]
[BlackClock "0:00:32"]

1. d4 {[%clk 0:02:57]}  Nf6 {[%clk 0:02:59]} 2. Bg5 {[%clk 0:02:56]}  e6 {[%clk 0:02:58]} 3. Nd2 {[%clk 0:02:54]}  h6 {[%clk 0:02:55]} 4. Bh4 {[%clk 0:02:54]}  d5 {[%clk 0:02:52]} 5. e3 {[%clk 0:02:54]}  c5 {[%clk 0:02:50]} 6. c3 {[%clk 0:02:53]}  Be7 {[%clk 0:02:48]} 7. Bd3 {[%clk 0:02:53]}  Nc6 {[%clk 0:02:44]} 8. f4 {[%clk 0:02:52]}  O-O {[%clk 0:02:40]} 9. Ngf3 {[%clk 0:02:52]}  b6 {[%clk 0:02:39]} 10. O-O {[%clk 0:02:50]}  Bb7 {[%clk 0:02:37]} 11. Ne5 {[%clk 0:02:48]}  Nxe5 {[%clk 0:02:34]} 12. fxe5 {[%clk 0:02:48]}  Ne4 {[%clk 0:02:35]} 13. Bxe7 {[%clk 0:02:48]}  Qxe7 {[%clk 0:02:36]} 14. Bxe4 {[%clk 0:02:47]}  dxe4 {[%clk 0:02:36]} 15. Qg4 {[%clk 0:02:47]}  Qg5 {[%clk 0:02:30]} 16. Rf4 {[%clk 0:02:39]}  f5 {[%clk 0:01:32]} 17. exf6 {[%clk 0:02:36]}  Rxf6 {[%clk 0:01:24]} 18. Qxg5 {[%clk 0:02:19]}  hxg5 {[%clk 0:01:23]} 19. Rg4 {[%clk 0:02:02]}  cxd4 {[%clk 0:01:21]} 20. cxd4 {[%clk 0:02:00]}  Rc8 {[%clk 0:01:21]} 21. Nxe4 {[%clk 0:01:54]}  Bxe4 {[%clk 0:01:18]} 22. Rxe4 {[%clk 0:01:53]}  Rc2 {[%clk 0:01:19]} 23. Rf1 {[%clk 0:01:47]}  Kf7 {[%clk 0:01:18]} 24. Re5 {[%clk 0:01:42]}  Rxb2 {[%clk 0:01:14]} 25. Rxg5 {[%clk 0:01:38]}  Rxa2 {[%clk 0:01:15]} 26. d5 {[%clk 0:01:28]}  Rxf1+ {[%clk 0:00:52]} 27. Kxf1 {[%clk 0:01:28]}  exd5 {[%clk 0:00:52]} 28. Rxd5 {[%clk 0:01:27]}  Ke6 {[%clk 0:00:53]} 29. Rb5 {[%clk 0:01:20]}  Kd6 {[%clk 0:00:50]} 30. h4 {[%clk 0:01:18]}  Kc6 {[%clk 0:00:50]} 31. Rg5 {[%clk 0:01:15]}  b5 {[%clk 0:00:50]} 32. Rg6+ {[%clk 0:01:10]}  Kc5 {[%clk 0:00:50]} 33. Rxg7 {[%clk 0:01:11]}  b4 {[%clk 0:00:50]} 34. Rb7 {[%clk 0:01:10]}  a5 {[%clk 0:00:49]} 35. h5 {[%clk 0:01:10]}  a4 {[%clk 0:00:49]} 36. h6 {[%clk 0:01:10]}  b3 {[%clk 0:00:49]} 37. Kg1 {[%clk 0:01:07]}  Ra1+ {[%clk 0:00:40]} 38. Kh2 {[%clk 0:01:06]}  Rd1 {[%clk 0:00:41]} 39. h7 {[%clk 0:01:01]}  Rd8 {[%clk 0:00:39]} 40. g4 {[%clk 0:00:54]}  Kc6 {[%clk 0:00:38]} 41. Rb4 {[%clk 0:00:51]}  Rh8 {[%clk 0:00:34]} 42. Rxa4 {[%clk 0:00:49]}  Rxh7+ {[%clk 0:00:34]} 43. Kg3 {[%clk 0:00:49]}  b2 {[%clk 0:00:34]} 44. Rc4+ {[%clk 0:00:44]}  Kb5 {[%clk 0:00:32]} 45. Rc8 {[%clk 0:00:36]}  Rb7 {[%clk 0:00:32]} 0-1


[Site "https://www.chess.com"]